[Event "*** Titled Tuesday Blitz"]
[Site "Chess.com"]
[Date "2021.03.09"]
[Round "5"]
[White "Magila31"]
[Black "toog"]
[Result "0-1"]
[WhiteElo "2219"]
[BlackElo "2378"]
[TimeControl "180+1"]
[EndTime "10:59:03 PST"]
[Termination "toog won on time"]

1. d4 {[%clk 0:02:59.4]} 1... Nf6 {[%clk 0:02:58.9]} 2. c4 {[%clk 0:02:58.9]}
2... g6 {[%clk 0:02:56.4]} 3. Nc3 {[%clk 0:02:57.9]} 3... Bg7 {[%clk 0:02:52.6]}
4. e4 {[%clk 0:02:56.7]} 4... d6 {[%clk 0:02:50.8]} 5. Be2 {[%clk 0:02:55.3]}
5... O-O {[%clk 0:02:49.9]} 6. Nf3 {[%clk 0:02:54.4]} 6... e5 {[%clk 0:02:48.3]}
7. O-O {[%clk 0:02:52.7]} 7... Nc6 {[%clk 0:02:47.2]} 8. d5 {[%clk 0:02:51.6]}
8... Ne7 {[%clk 0:02:45.7]} 9. b4 {[%clk 0:02:50.5]} 9... a5 {[%clk 0:02:43.8]}
10. bxa5 {[%clk 0:02:48.8]} 10... c5 {[%clk 0:02:42.6]} 11. dxc6 {[%clk
0:02:28.5]} 11... Nxc6 {[%clk 0:02:38.1]} 12. Ba3 {[%clk 0:02:22.1]} 12... Qxa5
{[%clk 0:02:31.3]} 13. Bb2 {[%clk 0:02:06.1]} 13... Bg4 {[%clk 0:02:18.1]} 14.
Nd2 {[%clk 0:02:02.2]} 14... Bxe2 {[%clk 0:02:16]} 15. Qxe2 {[%clk 0:02:02.6]}
15... Nd4 {[%clk 0:02:15.2]} 16. Qd3 {[%clk 0:02:03]} 16... Nd7 {[%clk
0:02:12.1]} 17. Nb3 {[%clk 0:02:01.8]} 17... Nc5 {[%clk 0:01:57.9]} 18. Nxc5
{[%clk 0:02:01.1]} 18... Qxc5 {[%clk 0:01:58.5]} 19. Nd5 {[%clk 0:01:57]} 19...
Ra4 {[%clk 0:01:52.4]} 20. Rfc1 {[%clk 0:01:53.4]} 20... Rfa8 {[%clk 0:01:49.9]}
21. a3 {[%clk 0:01:51.2]} 21... Bh6 {[%clk 0:01:42.5]} 22. Rc3 {[%clk
0:01:33.6]} 22... b5 {[%clk 0:01:33.6]} 23. cxb5 {[%clk 0:01:23.9]} 23... Qxb5
{[%clk 0:01:33.9]} 24. Qxb5 {[%clk 0:01:22.7]} 24... Nxb5 {[%clk 0:01:34.8]} 25.
Rb3 {[%clk 0:01:22.1]} 25... Nd4 {[%clk 0:01:32.4]} 26. Bxd4 {[%clk 0:01:19.4]}
26... Rxd4 {[%clk 0:01:33.3]} 27. f3 {[%clk 0:01:17.5]} 27... f5 {[%clk
0:01:33]} 28. Nc7 {[%clk 0:01:07.9]} 28... Raa4 {[%clk 0:01:26]} 29. Nb5 {[%clk
0:01:05.1]} 29... Rd2 {[%clk 0:01:23.2]} 30. Nc3 {[%clk 0:00:59.8]} 30... Rc4
{[%clk 0:01:20.9]} 31. a4 {[%clk 0:00:47.6]} 31... Be3+ {[%clk 0:01:19.8]} 32.
Kf1 {[%clk 0:00:45.7]} 32... Bd4 {[%clk 0:01:20]} 33. Rc1 {[%clk 0:00:38.5]}
33... Rf2+ {[%clk 0:01:18.4]} 34. Ke1 {[%clk 0:00:37.5]} 34... Rxg2 {[%clk
0:01:18.5]} 35. Na2 {[%clk 0:00:26.9]} 35... Rg1+ {[%clk 0:00:47.2]} 36. Kd2
{[%clk 0:00:27]} 36... Rgxc1 {[%clk 0:00:47.8]} 37. Nxc1 {[%clk 0:00:26.8]}
37... Rxa4 {[%clk 0:00:48.4]} 38. Rb7 {[%clk 0:00:16.5]} 38... Ra7 {[%clk
0:00:46]} 39. Rb5 {[%clk 0:00:12.1]} 39... fxe4 {[%clk 0:00:43.3]} 40. fxe4
{[%clk 0:00:11.7]} 40... Rf7 {[%clk 0:00:43.7]} 41. Nd3 {[%clk 0:00:11.9]} 41...
Kg7 {[%clk 0:00:43.3]} 42. Rd5 {[%clk 0:00:10.2]} 42... Rf6 {[%clk 0:00:43.3]}
43. Ke2 {[%clk 0:00:04.3]} 43... h5 {[%clk 0:00:43]} 44. h3 {[%clk 0:00:03.8]}
44... g5 {[%clk 0:00:42.8]} 45. Rb5 {[%clk 0:00:04.3]} 45... Kg6 {[%clk
0:00:42.5]} 46. Rb8 {[%clk 0:00:03.5]} 46... g4 {[%clk 0:00:41.2]} 47. Rg8+
{[%clk 0:00:03.6]} 47... Kh7 {[%clk 0:00:38.8]} 48. Rg5 {[%clk 0:00:03.6]} 48...
gxh3 {[%clk 0:00:38.7]} 49. Rxh5+ {[%clk 0:00:03.4]} 49... Rh6 {[%clk
0:00:39.6]} 50. Rxh6+ {[%clk 0:00:01.2]} 50... Kxh6 {[%clk 0:00:40.5]} 51. Kf3
{[%clk 0:00:01.8]} 51... Bg1 {[%clk 0:00:36.6]} 0-1

[Event "*** Titled Tuesday Blitz"]
[Site "Chess.com"]
[Date "2021.03.09"]
[Round "5"]
[White "GregShahade"]
[Black "jefferyx"]
[Result "1/2-1/2"]
[WhiteElo "2755"]
[BlackElo "3009"]
[TimeControl "180+1"]
[EndTime "10:59:06 PST"]
[Termination "Game drawn by repetition"]

1. e4 {[%clk 0:03:00.9]} 1... Nf6 {[%clk 0:03:00.9]} 2. e5 {[%clk 0:03:00.6]}
2... Nd5 {[%clk 0:03:01.6]} 3. d4 {[%clk 0:03:00.2]} 3... d6 {[%clk 0:03:02.3]}
4. Nf3 {[%clk 0:03:00.6]} 4... g6 {[%clk 0:03:03]} 5. Bc4 {[%clk 0:03:00.3]}
5... c6 {[%clk 0:03:03.7]} 6. exd6 {[%clk 0:02:58.4]} 6... Qxd6 {[%clk
0:03:04.6]} 7. O-O {[%clk 0:02:58]} 7... Bg7 {[%clk 0:03:05.3]} 8. h3 {[%clk
0:02:57.8]} 8... O-O {[%clk 0:03:05.9]} 9. Re1 {[%clk 0:02:56.9]} 9... a5 {[%clk
0:03:05.4]} 10. Nbd2 {[%clk 0:02:55.5]} 10... Bf5 {[%clk 0:03:04.3]} 11. c3
{[%clk 0:02:45.3]} 11... b5 {[%clk 0:03:03.9]} 12. Bf1 {[%clk 0:02:44.9]} 12...
a4 {[%clk 0:03:03.6]} 13. Nh4 {[%clk 0:02:44.5]} 13... a3 {[%clk 0:02:59.1]} 14.
Nxf5 {[%clk 0:02:42]} 14... gxf5 {[%clk 0:03:00]} 15. Qc2 {[%clk 0:02:36.2]}
15... axb2 {[%clk 0:02:57.6]} 16. Bxb2 {[%clk 0:02:37.1]} 16... e6 {[%clk
0:02:57.8]} 17. c4 {[%clk 0:02:26.6]} 17... Nb4 {[%clk 0:02:57.8]} 18. Qb3
{[%clk 0:02:26.8]} 18... N8a6 {[%clk 0:02:55.1]} 19. a3 {[%clk 0:02:16.2]} 19...
Bxd4 {[%clk 0:02:55]} 20. Bxd4 {[%clk 0:01:51.4]} 20... Qxd4 {[%clk 0:02:54.7]}
21. Nf3 {[%clk 0:01:47.7]} 21... bxc4 {[%clk 0:01:40.9]} 22. Bxc4 {[%clk
0:01:30.6]} 22... Qg7 {[%clk 0:01:41.1]} 23. axb4 {[%clk 0:01:25.1]} 23... Nc5
{[%clk 0:01:41.5]} 24. Qb1 {[%clk 0:01:21]} 24... Ne4 {[%clk 0:01:41.9]} 25.
Rxa8 {[%clk 0:01:05.1]} 25... Rxa8 {[%clk 0:01:42.8]} 26. Bd3 {[%clk 0:00:48.9]}
26... Nf6 {[%clk 0:01:42.7]} 27. Qb2 {[%clk 0:00:44.9]} 27... Nd5 {[%clk
0:01:40.5]} 28. Qxg7+ {[%clk 0:00:43.3]} 28... Kxg7 {[%clk 0:01:41.4]} 29. b5
{[%clk 0:00:41.3]} 29... Ra3 {[%clk 0:01:36.6]} 30. Bf1 {[%clk 0:00:36]} 30...
cxb5 {[%clk 0:01:33.3]} 31. Bxb5 {[%clk 0:00:36.9]} 31... Nf4 {[%clk 0:01:33.6]}
32. Bf1 {[%clk 0:00:34.1]} 32... Nxh3+ {[%clk 0:01:33.2]} 33. gxh3 {[%clk
0:00:33.4]} 33... Rxf3 {[%clk 0:01:32]} 34. Kg2 {[%clk 0:00:34]} 34... Rf4
{[%clk 0:01:30.2]} 35. Ra1 {[%clk 0:00:33.4]} 35... Rb4 {[%clk 0:01:27.6]} 36.
Ra7 {[%clk 0:00:33.2]} 36... Kf6 {[%clk 0:01:23.3]} 37. Be2 {[%clk 0:00:33.5]}
37... Kg6 {[%clk 0:01:20.4]} 38. Bf3 {[%clk 0:00:33.1]} 38... Rc4 {[%clk
0:01:18.9]} 39. Be2 {[%clk 0:00:32.8]} 39... Rb4 {[%clk 0:01:18.3]} 40. Bf3
{[%clk 0:00:33.5]} 40... Rc4 {[%clk 0:01:17.5]} 41. Rb7 {[%clk 0:00:34.2]} 41...
Rc3 {[%clk 0:01:08.4]} 42. Be2 {[%clk 0:00:33.4]} 42... h5 {[%clk 0:00:47.6]}
43. h4 {[%clk 0:00:29.9]} 43... Rc2 {[%clk 0:00:43.6]} 44. Bf3 {[%clk
0:00:29.4]} 44... Rc3 {[%clk 0:00:43.9]} 45. Rb8 {[%clk 0:00:29.7]} 45... Rc4
{[%clk 0:00:40]} 46. Kg3 {[%clk 0:00:28.9]} 46... Rd4 {[%clk 0:00:37.8]} 47.
Rg8+ {[%clk 0:00:28.5]} 47... Kh7 {[%clk 0:00:35.3]} 48. Rg5 {[%clk 0:00:26.9]}
48... f6 {[%clk 0:00:30.5]} 49. Rxh5+ {[%clk 0:00:26.8]} 49... Kg7 {[%clk
0:00:31.4]} 50. Kg2 {[%clk 0:00:22.6]} 50... Rd3 {[%clk 0:00:29.1]} 51. Be2
{[%clk 0:00:21.6]} 51... Rd4 {[%clk 0:00:24.8]} 52. Bf3 {[%clk 0:00:21.4]} 52...
Rd2 {[%clk 0:00:22.1]} 53. Kg3 {[%clk 0:00:18.1]} 53... Rd3 {[%clk 0:00:21.9]}
54. Kg2 {[%clk 0:00:18.4]} 54... Rd4 {[%clk 0:00:22]} 55. Be2 {[%clk 0:00:18.1]}
55... Re4 {[%clk 0:00:16.4]} 56. Bf3 {[%clk 0:00:16.7]} 56... Rd4 {[%clk
0:00:16.4]} 57. Be2 {[%clk 0:00:15]} 57... Re4 {[%clk 0:00:16.5]} 58. Bf3 {[%clk
0:00:15.4]} 58... Rd4 {[%clk 0:00:16.9]} 1/2-1/2

[Event "*** Titled Tuesday Blitz"]
[Site "Chess.com"]
[Date "2021.03.09"]
[Round "5"]
[White "NikolaN98"]
[Black "MFBerna"]
[Result "1-0"]
[WhiteElo "2517"]
[BlackElo "2371"]
[TimeControl "180+1"]
[EndTime "10:59:06 PST"]
[Termination "NikolaN98 won on time"]

1. e4 {[%clk 0:02:59.9]} 1... c6 {[%clk 0:02:57.7]} 2. d4 {[%clk 0:02:58.9]}
2... d5 {[%clk 0:02:58.6]} 3. exd5 {[%clk 0:02:59.4]} 3... cxd5 {[%clk
0:02:58.8]} 4. Bd3 {[%clk 0:03:00]} 4... Nc6 {[%clk 0:02:59]} 5. c3 {[%clk
0:02:59.8]} 5... g6 {[%clk 0:02:55.8]} 6. Nf3 {[%clk 0:02:57.7]} 6... Bg7 {[%clk
0:02:55.7]} 7. Nbd2 {[%clk 0:02:55.6]} 7... Nh6 {[%clk 0:02:56]} 8. h4 {[%clk
0:02:52.6]} 8... Bf5 {[%clk 0:02:53.6]} 9. Be2 {[%clk 0:02:52]} 9... Bg4 {[%clk
0:02:47.4]} 10. Nb3 {[%clk 0:02:34.9]} 10... Nf5 {[%clk 0:02:40.6]} 11. Nc5
{[%clk 0:02:28.4]} 11... Qc7 {[%clk 0:02:32.7]} 12. Nd3 {[%clk 0:02:26.8]} 12...
Qb6 {[%clk 0:01:56]} 13. Bf4 {[%clk 0:02:22.3]} 13... O-O {[%clk 0:01:31]} 14.
h5 {[%clk 0:02:07.7]} 14... Rfe8 {[%clk 0:01:18.8]} 15. hxg6 {[%clk 0:01:57.5]}
15... hxg6 {[%clk 0:01:19.7]} 16. Nfe5 {[%clk 0:01:54.9]} 16... Bxe2 {[%clk
0:01:17.4]} 17. Qxe2 {[%clk 0:01:54.4]} 17... Nxe5 {[%clk 0:01:14.9]} 18. dxe5
{[%clk 0:01:21.4]} 18... Rac8 {[%clk 0:01:03.6]} 19. g4 {[%clk 0:01:20]} 19...
Nd6 {[%clk 0:00:50.9]} 20. f3 {[%clk 0:00:45.9]} 20... d4 {[%clk 0:00:38.2]} 21.
cxd4 {[%clk 0:00:38.5]} 21... Qxd4 {[%clk 0:00:34.8]} 22. Be3 {[%clk 0:00:38]}
22... Qd5 {[%clk 0:00:25.4]} 23. exd6 {[%clk 0:00:28.5]} 23... exd6 {[%clk
0:00:26.3]} 24. Kf1 {[%clk 0:00:28.4]} 24... Rc4 {[%clk 0:00:14.4]} 25. Re1
{[%clk 0:00:20.6]} 25... Rxg4 {[%clk 0:00:13.7]} 26. Nf2 {[%clk 0:00:17.1]}
26... Rg3 {[%clk 0:00:10.8]} 27. Ne4 {[%clk 0:00:15.7]} 27... Rxe4 {[%clk
0:00:04]} 28. fxe4 {[%clk 0:00:15]} 28... Qxe4 {[%clk 0:00:04.9]} 29. Rh2 {[%clk
0:00:13.2]} 29... Qf5+ {[%clk 0:00:02.7]} 30. Bf2 {[%clk 0:00:12]} 30... Rf3
{[%clk 0:00:02.2]} 31. Qe8+ {[%clk 0:00:11.5]} 31... Bf8 {[%clk 0:00:02.7]} 32.
Qe2 {[%clk 0:00:11.8]} 32... Bg7 {[%clk 0:00:02.3]} 33. Qe8+ {[%clk 0:00:10.4]}
33... Bf8 {[%clk 0:00:02.6]} 34. Kg1 {[%clk 0:00:06.1]} 34... Rf4 {[%clk
0:00:02]} 35. Qe3 {[%clk 0:00:04.3]} 35... Rg4+ {[%clk 0:00:02.1]} 36. Rg2
{[%clk 0:00:04.6]} 36... Rxg2+ {[%clk 0:00:01.1]} 37. Kxg2 {[%clk 0:00:05.5]}
37... d5 {[%clk 0:00:01.6]} 38. Qf3 {[%clk 0:00:05.8]} 38... Qg5+ {[%clk
0:00:01.8]} 39. Kf1 {[%clk 0:00:06.4]} 1-0

[Event "*** Titled Tuesday Blitz"]
[Site "Chess.com"]
[Date "2021.03.09"]
[Round "5"]
[White "Anna_ChessMate"]
[Black "chessdjw"]
[Result "1-0"]
[WhiteElo "2573"]
[BlackElo "2725"]
[TimeControl "180+1"]
[EndTime "10:59:07 PST"]
[Termination "Anna_ChessMate won on time"]

1. d4 {[%clk 0:03:00.9]} 1... Nf6 {[%clk 0:02:59.2]} 2. c4 {[%clk 0:03:00]} 2...
g6 {[%clk 0:02:59.8]} 3. g3 {[%clk 0:02:56.3]} 3... Bg7 {[%clk 0:02:56.3]} 4.
Bg2 {[%clk 0:02:56.3]} 4... O-O {[%clk 0:02:57.2]} 5. Nc3 {[%clk 0:02:56.7]}
5... Nc6 {[%clk 0:02:57.5]} 6. d5 {[%clk 0:02:49.4]} 6... Ne5 {[%clk 0:02:57.1]}
7. b3 {[%clk 0:02:48.8]} 7... e6 {[%clk 0:02:45.8]} 8. dxe6 {[%clk 0:02:46.7]}
8... fxe6 {[%clk 0:02:44.8]} 9. Bb2 {[%clk 0:02:45.6]} 9... Rb8 {[%clk
0:02:06.6]} 10. Nf3 {[%clk 0:02:43]} 10... Nxf3+ {[%clk 0:02:06.3]} 11. exf3
{[%clk 0:02:40.3]} 11... a6 {[%clk 0:02:06.9]} 12. O-O {[%clk 0:02:40.4]} 12...
b5 {[%clk 0:02:05.1]} 13. cxb5 {[%clk 0:02:40.2]} 13... axb5 {[%clk 0:02:06]}
14. f4 {[%clk 0:02:40.3]} 14... b4 {[%clk 0:02:03.3]} 15. Na4 {[%clk 0:02:39.6]}
15... d6 {[%clk 0:01:32]} 16. Rc1 {[%clk 0:02:33.5]} 16... c5 {[%clk 0:01:27.4]}
17. Re1 {[%clk 0:02:25.9]} 17... Re8 {[%clk 0:01:25.5]} 18. Bc6 {[%clk
0:02:13.9]} 18... Re7 {[%clk 0:01:19.2]} 19. Nxc5 {[%clk 0:02:08.5]} 19... Kh8
{[%clk 0:00:38.1]} 20. Bxf6 {[%clk 0:01:52.3]} 20... Bxf6 {[%clk 0:00:37.6]} 21.
Ne4 {[%clk 0:01:53]} 21... Bg7 {[%clk 0:00:24.9]} 22. Nxd6 {[%clk 0:01:52.8]}
22... Ba6 {[%clk 0:00:24.2]} 23. Ne4 {[%clk 0:01:44]} 23... Qxd1 {[%clk
0:00:21]} 24. Rexd1 {[%clk 0:01:41.1]} 24... e5 {[%clk 0:00:20.2]} 25. fxe5
{[%clk 0:01:37.2]} 25... Bxe5 {[%clk 0:00:18.9]} 26. Bd5 {[%clk 0:01:32]} 26...
Be2 {[%clk 0:00:15.4]} 27. Rd2 {[%clk 0:01:28.7]} 27... Bf3 {[%clk 0:00:15.9]}
28. Ng5 {[%clk 0:01:24.3]} 28... Bxd5 {[%clk 0:00:10.5]} 29. Rxd5 {[%clk
0:01:25.2]} 29... Bc3 {[%clk 0:00:08.5]} 30. Rc2 {[%clk 0:01:21]} 30... Rbe8
{[%clk 0:00:07.8]} 31. Kg2 {[%clk 0:00:38]} 31... h6 {[%clk 0:00:07.9]} 32. Nh3
{[%clk 0:00:36.8]} 32... g5 {[%clk 0:00:07.1]} 33. Ng1 {[%clk 0:00:33.5]} 33...
Kg7 {[%clk 0:00:07]} 34. a4 {[%clk 0:00:25]} 34... Re1 {[%clk 0:00:03]} 35. Nf3
{[%clk 0:00:23.2]} 35... Rb1 {[%clk 0:00:03.4]} 36. Nd4 {[%clk 0:00:12.5]} 36...
Bxd4 {[%clk 0:00:03.1]} 37. Rxd4 {[%clk 0:00:12.6]} 37... Rxb3 {[%clk
0:00:03.1]} 38. a5 {[%clk 0:00:12.4]} 38... Ra8 {[%clk 0:00:02.6]} 39. Rc7+
{[%clk 0:00:12.2]} 39... Kg6 {[%clk 0:00:01.5]} 40. Rc6+ {[%clk 0:00:12.6]}
40... Kg7 {[%clk 0:00:01.2]} 41. Rd7+ {[%clk 0:00:12.4]} 41... Kg8 {[%clk
0:00:01.5]} 42. Rg6+ {[%clk 0:00:12.4]} 1-0

[Event "*** Titled Tuesday Blitz"]
[Site "Chess.com"]
[Date "2021.03.09"]
[Round "5"]
[White "samidescalona2002"]
[Black "FontVella8"]
[Result "1-0"]
[WhiteElo "2307"]
[BlackElo "2474"]
[TimeControl "180+1"]
[EndTime "10:59:07 PST"]
[Termination "samidescalona2002 won on time"]

1. d4 {[%clk 0:03:00.9]} 1... g6 {[%clk 0:03:00.3]} 2. Bf4 {[%clk 0:02:59.9]}
2... Bg7 {[%clk 0:03:01.2]} 3. e3 {[%clk 0:02:59.4]} 3... Nf6 {[%clk 0:03:01.3]}
4. h3 {[%clk 0:02:59.3]} 4... O-O {[%clk 0:03:01.5]} 5. Nf3 {[%clk 0:02:59.5]}
5... b6 {[%clk 0:03:02.2]} 6. c4 {[%clk 0:02:59]} 6... Bb7 {[%clk 0:03:02.5]} 7.
Nc3 {[%clk 0:02:59.4]} 7... d6 {[%clk 0:03:03.1]} 8. Qc2 {[%clk 0:02:59.4]} 8...
Nbd7 {[%clk 0:02:55.4]} 9. Be2 {[%clk 0:02:59]} 9... e6 {[%clk 0:02:55.7]} 10.
O-O {[%clk 0:02:58.6]} 10... Qe7 {[%clk 0:02:56]} 11. b4 {[%clk 0:02:58.5]}
11... a5 {[%clk 0:02:55.4]} 12. a3 {[%clk 0:02:57.7]} 12... e5 {[%clk
0:02:54.8]} 13. Bh2 {[%clk 0:02:57.3]} 13... Rfe8 {[%clk 0:02:46.2]} 14. Nb5
{[%clk 0:02:51.4]} 14... Qd8 {[%clk 0:02:40.8]} 15. Rad1 {[%clk 0:02:46.3]}
15... axb4 {[%clk 0:02:36]} 16. axb4 {[%clk 0:02:47.2]} 16... Qc8 {[%clk
0:02:27.4]} 17. Ra1 {[%clk 0:02:36.2]} 17... Be4 {[%clk 0:02:24.7]} 18. Qb2
{[%clk 0:02:34.8]} 18... exd4 {[%clk 0:02:17.1]} 19. exd4 {[%clk 0:02:29.8]}
19... Qb7 {[%clk 0:02:16.7]} 20. Nc3 {[%clk 0:02:21.8]} 20... Bf5 {[%clk
0:02:11.8]} 21. Nh4 {[%clk 0:02:13.4]} 21... Be4 {[%clk 0:02:01.2]} 22. f3
{[%clk 0:01:44.8]} 22... Rxa1 {[%clk 0:01:40.3]} 23. Rxa1 {[%clk 0:01:41.1]}
23... Bf5 {[%clk 0:00:31.9]} 24. Nxf5 {[%clk 0:01:36.6]} 24... gxf5 {[%clk
0:00:31.9]} 25. Qd2 {[%clk 0:01:22.2]} 25... d5 {[%clk 0:00:25.2]} 26. c5 {[%clk
0:01:17.5]} 26... bxc5 {[%clk 0:00:25]} 27. bxc5 {[%clk 0:01:18.4]} 27... c6
{[%clk 0:00:20.9]} 28. Rb1 {[%clk 0:01:16.2]} 28... Qa7 {[%clk 0:00:21.3]} 29.
Bd3 {[%clk 0:01:14.9]} 29... Nh5 {[%clk 0:00:17.5]} 30. Bxf5 {[%clk 0:01:07.5]}
30... Nxc5 {[%clk 0:00:17.5]} 31. g4 {[%clk 0:01:07.7]} 31... Ne6 {[%clk
0:00:13.7]} 32. Bxe6 {[%clk 0:01:01.6]} 32... fxe6 {[%clk 0:00:13.7]} 33. Ne2
{[%clk 0:00:50.4]} 33... Nf6 {[%clk 0:00:12.3]} 34. Rc1 {[%clk 0:00:50.5]} 34...
e5 {[%clk 0:00:07.6]} 35. Rxc6 {[%clk 0:00:38.1]} 35... e4 {[%clk 0:00:08]} 36.
fxe4 {[%clk 0:00:15.9]} 36... Nxe4 {[%clk 0:00:06]} 37. Qd3 {[%clk 0:00:15.6]}
37... Qa1+ {[%clk 0:00:04.4]} 38. Rc1 {[%clk 0:00:14.8]} 38... Qb2 {[%clk
0:00:04.7]} 39. Rf1 {[%clk 0:00:13.1]} 39... Ng5 {[%clk 0:00:03.6]} 40. Nf4
{[%clk 0:00:11.9]} 40... Rf8 {[%clk 0:00:02.6]} 41. h4 {[%clk 0:00:11.2]} 41...
Nf7 {[%clk 0:00:01.7]} 42. Ne6 {[%clk 0:00:10]} 1-0

[Event "*** Titled Tuesday Blitz"]
[Site "Chess.com"]
[Date "2021.03.09"]
[Round "5"]
[White "Nf3c5"]
[Black "FormerProdigy"]
[Result "1-0"]
[WhiteElo "2621"]
[BlackElo "2830"]
[TimeControl "180+1"]
[EndTime "10:59:08 PST"]
[Termination "Nf3c5 won on time"]

1. d4 {[%clk 0:03:00]} 1... Nf6 {[%clk 0:02:59.7]} 2. Bf4 {[%clk 0:02:58.5]}
2... d5 {[%clk 0:02:59]} 3. e3 {[%clk 0:02:58.4]} 3... c5 {[%clk 0:02:59.2]} 4.
c3 {[%clk 0:02:57.6]} 4... Qb6 {[%clk 0:02:59.2]} 5. Qb3 {[%clk 0:02:57]} 5...
c4 {[%clk 0:02:59.5]} 6. Qc2 {[%clk 0:02:56.7]} 6... g6 {[%clk 0:02:54.8]} 7.
Nd2 {[%clk 0:02:40.7]} 7... Bf5 {[%clk 0:02:51.6]} 8. Qc1 {[%clk 0:02:40.8]}
8... Nc6 {[%clk 0:02:37.2]} 9. b3 {[%clk 0:02:39.4]} 9... cxb3 {[%clk
0:02:16.5]} 10. axb3 {[%clk 0:02:38.2]} 10... e5 {[%clk 0:02:16.7]} 11. dxe5
{[%clk 0:02:31.2]} 11... Nh5 {[%clk 0:01:58]} 12. Ngf3 {[%clk 0:02:20.2]} 12...
Nxf4 {[%clk 0:01:57.8]} 13. exf4 {[%clk 0:02:21.1]} 13... Bc5 {[%clk 0:01:58]}
14. Be2 {[%clk 0:02:02.4]} 14... Bxf2+ {[%clk 0:01:57.6]} 15. Kf1 {[%clk
0:02:02.7]} 15... Be3 {[%clk 0:01:53.1]} 16. Qa3 {[%clk 0:01:51.3]} 16... Bxf4
{[%clk 0:01:49.7]} 17. Re1 {[%clk 0:01:39.2]} 17... O-O-O {[%clk 0:01:38]} 18.
c4 {[%clk 0:01:09]} 18... Bxd2 {[%clk 0:01:04.1]} 19. Nxd2 {[%clk 0:01:08.1]}
19... Nxe5 {[%clk 0:01:04]} 20. c5 {[%clk 0:00:58.8]} 20... Qf6 {[%clk 0:01:04]}
21. Nf3 {[%clk 0:00:58.1]} 21... Nxf3 {[%clk 0:00:59.1]} 22. Bxf3 {[%clk
0:00:57.3]} 22... Qd4 {[%clk 0:00:40.9]} 23. Qxa7 {[%clk 0:00:33.7]} 23... Bd3+
{[%clk 0:00:40.6]} 24. Be2 {[%clk 0:00:33.7]} 24... Rhe8 {[%clk 0:00:39.4]} 25.
Qa8+ {[%clk 0:00:27.2]} 25... Kc7 {[%clk 0:00:38.9]} 26. Qa5+ {[%clk 0:00:27.4]}
26... Kb8 {[%clk 0:00:36.8]} 27. Bxd3 {[%clk 0:00:25.6]} 27... Qxd3+ {[%clk
0:00:33.6]} 28. Kf2 {[%clk 0:00:25.8]} 28... Qc2+ {[%clk 0:00:25.7]} 29. Kf1
{[%clk 0:00:17.5]} 29... Rxe1+ {[%clk 0:00:21.2]} 30. Qxe1 {[%clk 0:00:18.4]}
30... Qxc5 {[%clk 0:00:16.6]} 31. Qe5+ {[%clk 0:00:18.1]} 31... Qc7 {[%clk
0:00:13.8]} 32. Qe3 {[%clk 0:00:10.3]} 32... d4 {[%clk 0:00:12]} 33. Qd2 {[%clk
0:00:10.3]} 33... d3 {[%clk 0:00:11.2]} 34. Kf2 {[%clk 0:00:10.8]} 34... Qc5+
{[%clk 0:00:10.1]} 35. Kg3 {[%clk 0:00:11.3]} 35... Qe5+ {[%clk 0:00:09.2]} 36.
Kf2 {[%clk 0:00:11.8]} 36... Qd4+ {[%clk 0:00:07.9]} 37. Kg3 {[%clk 0:00:08.4]}
37... Qd6+ {[%clk 0:00:05.7]} 38. Kf2 {[%clk 0:00:08.3]} 38... Re8 {[%clk
0:00:03.2]} 39. Re1 {[%clk 0:00:08.2]} 39... Qf6+ {[%clk 0:00:02]} 40. Kg1
{[%clk 0:00:06.8]} 1-0

[Event "*** Titled Tuesday Blitz"]
[Site "Chess.com"]
[Date "2021.03.09"]
[Round "5"]
[White "dennisodessa"]
[Black "DarZay"]
[Result "1-0"]
[WhiteElo "2346"]
[BlackElo "2181"]
[TimeControl "180+1"]
[EndTime "10:59:08 PST"]
[Termination "dennisodessa won on time"]

1. d4 {[%clk 0:03:00.1]} 1... d5 {[%clk 0:02:59.4]} 2. c4 {[%clk 0:02:59.6]}
2... e6 {[%clk 0:02:59.6]} 3. Nc3 {[%clk 0:02:58.8]} 3... Be7 {[%clk 0:02:59.7]}
4. cxd5 {[%clk 0:02:58.8]} 4... exd5 {[%clk 0:02:59.4]} 5. Bf4 {[%clk
0:02:59.7]} 5... Nf6 {[%clk 0:02:57.4]} 6. e3 {[%clk 0:02:58.6]} 6... c6 {[%clk
0:02:53.3]} 7. Bd3 {[%clk 0:02:58.4]} 7... O-O {[%clk 0:02:52.5]} 8. h3 {[%clk
0:02:55.6]} 8... Nbd7 {[%clk 0:02:49.6]} 9. Nf3 {[%clk 0:02:55.5]} 9... h6
{[%clk 0:02:44.4]} 10. Qc2 {[%clk 0:02:53.1]} 10... b6 {[%clk 0:02:38.8]} 11.
O-O {[%clk 0:02:49.4]} 11... Bb7 {[%clk 0:02:38.7]} 12. Rfd1 {[%clk 0:02:49.2]}
12... Rc8 {[%clk 0:02:29.6]} 13. Rac1 {[%clk 0:02:44.4]} 13... c5 {[%clk
0:02:29.2]} 14. Qe2 {[%clk 0:02:26.7]} 14... Ne4 {[%clk 0:02:00.1]} 15. Ne5
{[%clk 0:02:13.7]} 15... Nxe5 {[%clk 0:01:50.1]} 16. Bxe4 {[%clk 0:02:05.3]}
16... dxe4 {[%clk 0:01:48.6]} 17. dxe5 {[%clk 0:02:01.2]} 17... Qe8 {[%clk
0:01:43.4]} 18. Qg4 {[%clk 0:01:59.6]} 18... Kh8 {[%clk 0:01:39.1]} 19. Qh5
{[%clk 0:01:53.3]} 19... Qc6 {[%clk 0:01:36.4]} 20. Nd5 {[%clk 0:01:50.8]} 20...
Rce8 {[%clk 0:01:32.4]} 21. Nxe7 {[%clk 0:01:48.4]} 21... Rxe7 {[%clk
0:01:32.3]} 22. Rd6 {[%clk 0:01:49.3]} 22... Qc7 {[%clk 0:01:10.5]} 23. Bxh6
{[%clk 0:01:46.7]} 23... Re6 {[%clk 0:01:04.6]} 24. Bf4+ {[%clk 0:01:15]} 24...
Kg8 {[%clk 0:01:04.3]} 25. Rcd1 {[%clk 0:01:15.9]} 25... Bc6 {[%clk 0:00:38.1]}
26. Qg4 {[%clk 0:00:59.3]} 26... Rxd6 {[%clk 0:00:33.7]} 27. exd6 {[%clk
0:00:52.4]} 27... Qd7 {[%clk 0:00:31.6]} 28. Qg3 {[%clk 0:00:50.9]} 28... f6
{[%clk 0:00:25.7]} 29. h4 {[%clk 0:00:48.2]} 29... Bb5 {[%clk 0:00:22.4]} 30.
Rd5 {[%clk 0:00:46.9]} 30... f5 {[%clk 0:00:19.9]} 31. Qg5 {[%clk 0:00:42.9]}
31... Bc4 {[%clk 0:00:18.1]} 32. Re5 {[%clk 0:00:39.5]} 32... Rf7 {[%clk
0:00:14]} 33. Re7 {[%clk 0:00:36.9]} 33... Rxe7 {[%clk 0:00:13.5]} 34. dxe7
{[%clk 0:00:36.7]} 34... Bxa2 {[%clk 0:00:08.4]} 35. Be5 {[%clk 0:00:35.5]}
35... Kf7 {[%clk 0:00:05.6]} 36. Qxg7+ {[%clk 0:00:35.4]} 36... Ke6 {[%clk
0:00:03.1]} 37. Qf6+ {[%clk 0:00:12.7]} 37... Kd5 {[%clk 0:00:03.2]} 38. Qf8
{[%clk 0:00:13.6]} 1-0